fUST/lending_fUST_20250101
["ID","MTS","AMOUNT","RATE_DAILY","PERIOD"]
[347302409,1735669841876,-589.09,0.00019452,3]
[347302410,1735669841885,-500.0,0.00019452,3]
[347302411,1735669841894,-500.0,0.00019452,3]
[347302412,1735669841903,-502.16,0.00019452,3]
[347302413,1735669841913,-500.0,0.00019452,3]
[347302414,1735669841923,-500.0,0.00019452,3]
[347302415,1735669841932,-570.70236481,0.00019452,3]
[347302416,1735669841941,-504.84278697,0.00019452,3]
[347302417,1735669841950,-806.41,0.00019452,3]
[347302418,1735669841959,-500.0,0.00019452,3]
[347302419,1735669841968,-500.0,0.00019452,3]
[347302420,1735669841978,-599.81231256,0.00019452,3]
[347302421,1735669841987,-500.0,0.00019452,3]
[347302422,1735669841997,-500.0,0.00019452,3]
[347302423,1735669842006,-500.0,0.00019452,3]
[347302424,1735669842016,-500.0,0.00019452,2]
[347302426,1735669842025,-500.0,0.00019452,3]
[347302428,1735669842034,-759.41,0.00019452,3]
[347302429,1735669842043,-500.0,0.00019452,3]
[347302430,1735669842052,-500.0,0.00019452,3]
[347302431,1735669842062,-500.0,0.00019452,3]
[347302432,1735669842071,-5614.94,0.00019452,3]
[347302433,1735669842080,-500.0,0.00019452,3]
[347302434,1735669842089,-500.0,0.00019452,3]
[347302435,1735669842098,-500.0,0.00019452,3]
[347302436,1735669842107,-902.8,0.00019452,3]
[347302437,1735669842116,-517.61,0.00019452,3]
[347302438,1735669842125,-500.0,0.00019452,3]
[347302439,1735669842134,-500.0,0.00019452,3]
[347302440,1735669842143,-500.0,0.00019452,3]
[347302441,1735669842152,-568.69899948,0.00019452,3]
[347302442,1735669842161,-500.0,0.00019452,3]
[347302443,1735669842171,-644.5,0.00019452,3]
[347302444,1735669842180,-500.0,0.00019452,3]
[347302445,1735669842189,-522.98,0.00019452,3]
[347302446,1735669842198,-500.0,0.00019452,3]
[347302447,1735669842207,-571.64537705,0.00019452,3]
[347302448,1735669842216,-577.61,0.00019452,3]
[347302449,1735669842225,-500.0,0.00019452,3]
[347302450,1735669842234,-500.0,0.00019452,3]
[347302451,1735669842244,-500.0,0.00019452,3]
[347302452,1735669842253,-240.07717217,0.00019452,3]
[347302453,1735669842262,-500.0,0.00019452,3]
[347302454,1735669842272,-330.7807669,0.00019452,3]
[347302455,1735669842284,-842.88,0.00019452,3]
[347302456,1735669842293,-500.0,0.00019452,3]
[347302457,1735669842302,-500.0,0.00019452,3]
[347302458,1735669842311,-6080.51,0.00019452,3]
[347302459,1735669842321,-500.0,0.00019452,3]
[347302460,1735669842330,-500.0,0.00019452,3]
[347302461,1735669842339,-973.69,0.00019452,3]
[347302462,1735669842349,-500.0,0.00019452,3]
[347302463,1735669842358,-500.0,0.00019452,3]
[347302464,1735669842368,-592.17,0.00019452,3]
[347302465,1735669842378,-731.64,0.00019452,3]
[347302466,1735669842387,-500.0,0.00019452,3]
[347302468,1735669842396,-500.0,0.00019452,3]
[347302470,1735669842405,-500.0,0.00019452,3]
[347302472,1735669842413,-168.0,0.00019452,3]
[347302474,1735669842422,-1148.79,0.00019452,3]
[347302476,1735669842432,-735.48,0.00019452,3]
[347302478,1735669842441,-500.0,0.00019452,3]
[347302482,1735669842450,-500.0,0.00019452,3]
[347302484,1735669842460,-500.0,0.00019452,3]
[347302486,1735669842469,-525.49,0.00019452,3]
[347302488,1735669842479,-534.43,0.00019452,3]
[347302491,1735669842489,-500.0,0.00019452,3]
[347302494,1735669842499,-500.0,0.00019452,3]
[347302497,1735669842508,-1132.64,0.00019452,3]
[347302499,1735669842517,-500.0,0.00019452,3]
[347302502,1735669842526,-769.3,0.00019452,3]
[347302505,1735669842535,-1370.4,0.00019452,3]
[347302507,1735669842545,-2902.22,0.00019452,3]
[347302509,1735669842554,-500.0,0.00019452,3]
[347302511,1735669842563,-500.0,0.00019452,3]
[347302512,1735669842573,-500.0,0.00019452,3]
[347302513,1735669842582,-500.0,0.00019452,3]
[347302514,1735669842592,-660.05,0.00019452,3]
[347302515,1735669842601,-500.0,0.00019452,3]
[347302516,1735669842611,-422.85933435,0.00019452,3]
[347302517,1735669842620,-500.0,0.00019452,3]
[347302518,1735669842629,-500.0,0.00019452,3]
[347302519,1735669842639,-952.43,0.00019452,3]
[347302520,1735669842648,-500.0,0.00019452,3]
[347302521,1735669842658,-797.86,0.00019452,3]
[347302522,1735669842667,-500.0,0.00019452,3]
[347302523,1735669842677,-1094.57,0.00019452,3]
[347302524,1735669842687,-3050.94,0.00019452,3]
[347302525,1735669842696,-8791.02,0.00019452,3]
[347302526,1735669842706,-500.0,0.00019452,3]
[347302527,1735669842715,-850.86,0.00019452,3]
[347302528,1735669842724,-503.98295423,0.00019452,3]
[347302529,1735669842734,-500.0,0.00019452,3]
[347302530,1735669842744,-330.95154393,0.00019452,3]
[347302531,1735669842753,-797.48,0.00019452,3]
[347302532,1735669842762,-738.59,0.00019452,3]
[347302533,1735669842771,-734.17,0.00019452,3]
[347302534,1735669842780,-576.41,0.00019452,3]
[347302535,1735669842789,-500.0,0.00019452,3]
[347302536,1735669842799,-500.0,0.00019452,3]
[347302537,1735669842808,-850.38,0.00019452,3]
[347302538,1735669842817,-500.0,0.00019452,3]
[347302539,1735669842826,-730.16,0.00019452,3]
[347302540,1735669842835,-500.0,0.00019452,3]
[347302541,1735669842844,-891.82,0.00019452,3]
[347302542,1735669842853,-833.17,0.00019452,3]
[347302543,1735669842862,-843.3,0.00019452,3]
[347302544,1735669842872,-500.0,0.00019452,3]
[347302545,1735669842881,-500.0,0.00019452,3]
[347302546,1735669842890,-500.0,0.00019452,3]
[347302547,1735669842899,-500.0,0.00019452,3]
[347302548,1735669842908,-1518.08,0.00019452,3]
[347302549,1735669842918,-500.0,0.00019452,3]
[347302550,1735669842927,-500.0,0.00019452,3]
[347302551,1735669842936,-500.0,0.00019452,3]
[347302552,1735669842945,-500.0,0.00019452,3]
[347302553,1735669842954,-500.0,0.00019452,3]
[347302554,1735669842963,-500.0,0.00019452,3]
[347302555,1735669842972,-1852.78,0.00019452,3]
[347302556,1735669842981,-500.0,0.00019452,3]
[347302557,1735669842991,-500.0,0.00019452,3]
[347302558,1735669843001,-863.36,0.00019452,3]
[347302559,1735669843010,-500.0,0.00019452,3]
[347302560,1735669843020,-500.0,0.00019452,3]
[347302561,1735669843029,-5139.78,0.00019452,3]
[347302562,1735669843038,-500.0,0.00019452,3]
[347302563,1735669843047,-502.77443756,0.00019452,3]
[347302564,1735669843056,-1896.6,0.00019452,3]
[347302565,1735669843065,-749.04,0.00019452,3]
[347302566,1735669843074,-776.35,0.00019452,3]
[347302567,1735669843083,-1521.01,0.00019452,3]
[347302568,1735669843092,-563.58,0.00019452,3]
[347302569,1735669843101,-8890.06,0.00019452,3]
[347302570,1735669843110,-1227.77,0.00019452,3]
[347302571,1735669843119,-600.29,0.00019452,3]
[347302572,1735669843128,-727.38,0.00019452,3]
[347302573,1735669843137,-500.0,0.00019452,3]
[347302574,1735669843146,-500.0,0.00019452,3]
[347302575,1735669843155,-500.0,0.00019452,3]
[347302576,1735669843164,-500.0,0.00019452,3]
[347302577,1735669843173,-500.0,0.00019452,3]
[347302578,1735669843182,-684.02,0.00019452,3]
[347302579,1735669843191,-500.0,0.00019452,3]
[347302580,1735669843199,-500.0,0.00019452,3]
[347302581,1735669843209,-1115.4,0.00019452,3]
[347302582,1735669843218,-500.0,0.00019452,3]
[347302583,1735669843227,-500.0,0.00019452,3]
[347302584,1735669843236,-1002.07,0.00019452,3]
[347302585,1735669843245,-40424.46,0.00019452,3]
[347302586,1735669843254,-1021.39,0.00019452,3]
[347302587,1735669843263,-500.0,0.00019452,3]
[347302588,1735669843273,-500.0,0.00019452,3]
[347302589,1735669843285,-500.0,0.00019452,3]
[347302590,1735669843294,-909.7,0.00019452,3]
[347302591,1735669843303,-1245.62,0.00019452,3]
[347302592,1735669843312,-500.0,0.00019452,3]
[347302593,1735669843322,-500.0,0.00019452,3]
[347302594,1735669843331,-3945.13,0.00019452,3]
[347302595,1735669843340,-3107.38,0.00019452,3]
[347302596,1735669843349,-832.16,0.00019452,3]
[347302597,1735669843359,-500.0,0.00019452,3]
[347302598,1735669843368,-497.53869906,0.00019452,3]
[347302599,1735669843377,-1192.86,0.00019452,3]
[347302600,1735669843386,-500.0,0.00019452,3]
[347302601,1735669843395,-500.0,0.00019452,3]
[347302602,1735669843404,-500.0,0.00019452,3]
[347302603,1735669843413,-500.0,0.00019452,3]
[347302604,1735669843422,-521.96,0.00019452,3]
[347302605,1735669843431,-500.0,0.00019452,3]
[347302606,1735669843440,-500.0,0.00019452,3]
[347302607,1735669843449,-768.06,0.00019452,3]
[347302608,1735669843459,-502.11,0.00019452,3]
[347302609,1735669843468,-1993.67,0.00019452,3]
[347302610,1735669843477,-500.0,0.00019452,3]
[347302611,1735669843486,-1512.88,0.00019452,3]
[347302612,1735669843494,-500.0,0.00019452,3]
[347302613,1735669843504,-500.0,0.00019452,3]
[347302614,1735669843513,-1489.93,0.00019452,3]
[347302615,1735669843522,-500.0,0.00019452,3]
[347302616,1735669843531,-1621.23,0.00019452,3]
[347302617,1735669843540,-2082.02,0.00019452,3]
[347302618,1735669843549,-500.0,0.00019452,3]
[347302619,1735669843558,-1485.04,0.00019452,3]
[347302620,1735669843567,-500.0,0.00019473,2]
[347302621,1735669843576,-302.66710251,0.00019486,2]
[347302622,1735669843585,-236.02,0.00019516,2]
[347302623,1735669843594,-153.0,0.00019554,2]
[347302624,1735669843603,-153.0,0.00019554,2]
[347302625,1735669843612,-153.0,0.00019554,2]
[347302626,1735669843622,-153.0,0.00019554,2]
[347302627,1735669843631,-153.0,0.00019554,2]
[347302628,1735669843640,-153.0,0.00019554,2]
[347302629,1735669843649,-153.0,0.00019554,2]
[347302631,1735669843657,-153.0,0.00019583,2]
[347302633,1735669843666,-153.0,0.00019583,2]
[347302634,1735669843675,-153.0,0.00019583,2]
[347302636,1735669843684,-153.0,0.00019583,2]
[347302638,1735669843693,-153.0,0.00019583,2]
[347302639,1735669843702,-153.0,0.00019583,2]
[347302640,1735669843711,-153.0,0.00019583,2]
[347302641,1735669843720,-153.0,0.00019583,2]
[347302642,1735669843729,-153.0,0.00019583,2]
[347302644,1735669843737,-153.0,0.00019583,2]
[347302645,1735669843747,-153.0,0.00019583,2]
[347302646,1735669843755,-153.0,0.00019583,2]
[347302648,1735669843764,-153.0,0.00019583,2]
[347302650,1735669843773,-153.0,0.00019583,2]
[347302652,1735669843782,-153.0,0.00019583,2]
[347302653,1735669843791,-389.94802501,0.00019614,2]
[347302654,1735669843800,-1056.27951268,0.00019626,2]
[347302655,1735669843809,-192.0,0.00019667,2]
[347302656,1735669843818,-302.66710251,0.00019677,2]
[347302657,1735669843827,-704.9107508,0.00019699,2]
[347302658,1735669843836,-166.1,0.00019714,2]
[347302659,1735669843845,-1000.0,0.00019721,2]
[347302660,1735669843854,-1000.0,0.00019721,2]
[347302661,1735669843863,-500.0,0.00019726,3]
[347302662,1735669843872,-233.29200516,0.00019726,3]
[347302663,1735669843881,-536.86,0.00019726,3]
[347302664,1735669843890,-500.0,0.00019726,3]
[347302665,1735669843899,-500.0,0.00019726,3]
[347302666,1735669843908,-500.0,0.00019726,3]
[347302667,1735669843916,-500.0,0.00019726,3]
[347302668,1735669843925,-500.0,0.00019726,3]
[347302669,1735669844036,-637.88,0.00019726,3]
[347302670,1735669844046,-500.0,0.00019726,3]
[347302671,1735669844056,-500.0,0.00019726,3]
[347302672,1735669844065,-500.0,0.00019726,3]
[347302673,1735669844074,-500.0,0.00019726,3]
[347302674,1735669844083,-500.0,0.00019726,3]
[347302675,1735669844092,-522.63493138,0.00019726,3]
[347302676,1735669844101,-500.0,0.00019726,3]
[347302677,1735669844110,-545.94,0.00019726,3]
[347302678,1735669844119,-356.14377068,0.00019726,3]
[347302679,1735669844128,-500.0,0.00019726,3]
[347302680,1735669844137,-589.09,0.00019726,3]
[347302681,1735669844146,-500.0,0.00019726,3]
[347302682,1735669844155,-545.23847779,0.00019726,3]
[347302683,1735669844164,-502.16,0.00019726,3]
[347302684,1735669844173,-500.0,0.00019726,3]
[347302685,1735669844183,-806.41,0.00019726,3]
[347302686,1735669844192,-500.0,0.00019726,3]
[347302687,1735669844201,-500.0,0.00019726,3]
[347302688,1735669844210,-500.0,0.00019726,3]
[347302689,1735669844219,-500.0,0.00019726,3]
[347302690,1735669844228,-500.0,0.00019726,2]
[347302691,1735669844238,-500.0,0.00019726,3]
[347302692,1735669844248,-759.41,0.00019726,3]
[347302693,1735669844258,-500.0,0.00019726,3]
[347302694,1735669844267,-500.0,0.00019726,3]
[347302695,1735669844277,-500.0,0.00019726,3]
[347302696,1735669844289,-5614.94,0.00019726,3]
[347302697,1735669844298,-500.0,0.00019726,3]
[347302698,1735669844307,-500.0,0.00019726,3]
[347302699,1735669844316,-902.8,0.00019726,3]
[347302700,1735669844326,-517.61,0.00019726,3]
[347302701,1735669844335,-500.0,0.00019726,3]
[347302702,1735669844344,-500.0,0.00019726,3]
[347302703,1735669844353,-500.0,0.00019726,3]
[347302704,1735669844363,-500.0,0.00019726,3]
[347302705,1735669844372,-500.0,0.00019726,3]
[347302706,1735669844382,-522.98,0.00019726,3]
[347302707,1735669844391,-500.0,0.00019726,3]
[347302708,1735669844400,-577.61,0.00019726,3]
[347302709,1735669844409,-451.79420548,0.00019726,3]
[347302710,1735669844418,-500.0,0.00019726,3]
[347302711,1735669844428,-500.0,0.00019726,3]
[347302712,1735669844437,-842.88,0.00019726,3]
[347302713,1735669844447,-500.0,0.00019726,3]
[347302714,1735669844456,-500.0,0.00019726,3]
[347302715,1735669844465,-6080.51,0.00019726,3]
[347302716,1735669844474,-500.0,0.00019726,3]
[347302717,1735669844483,-973.69,0.00019726,3]
[347302718,1735669844492,-500.0,0.00019726,3]
[347302719,1735669844502,-592.17,0.00019726,3]
[347302720,1735669844511,-731.64,0.00019726,3]
[347302721,1735669844520,-500.0,0.00019726,3]
[347302722,1735669844529,-500.0,0.00019726,3]
[347302723,1735669844538,-500.0,0.00019726,3]
[347302724,1735669844547,-1148.79,0.00019726,3]
[347302725,1735669844556,-735.48,0.00019726,3]
[347302726,1735669844565,-500.0,0.00019726,3]
[347302727,1735669844574,-648.51860179,0.00019726,3]
[347302728,1735669844584,-500.0,0.00019726,3]
[347302729,1735669844593,-525.49,0.00019726,3]
[347302730,1735669844603,-534.43,0.00019726,3]
[347302731,1735669844613,-500.0,0.00019726,3]
[347302732,1735669844622,-500.0,0.00019726,3]
[347302733,1735669844630,-1132.64,0.00019726,3]
[347302734,1735669844641,-769.3,0.00019726,3]
[347302735,1735669844650,-1370.4,0.00019726,3]
[347302736,1735669844659,-2902.22,0.00019726,3]
[347302737,1735669844669,-500.0,0.00019726,3]
[347302738,1735669844678,-245.96079676,0.00019726,3]
[347302739,1735669844687,-500.0,0.00019726,3]
[347302740,1735669844696,-660.05,0.00019726,3]
[347302741,1735669844705,-500.0,0.00019726,3]
[347302742,1735669844713,-500.0,0.00019726,3]
[347302743,1735669844722,-500.0,0.00019726,3]
[347302744,1735669844732,-952.43,0.00019726,3]
[347302745,1735669844741,-500.0,0.00019726,3]
[347302746,1735669844752,-797.86,0.00019726,3]
[347302747,1735669844761,-500.0,0.00019726,3]
[347302748,1735669844770,-1094.57,0.00019726,3]
[347302749,1735669844779,-3050.94,0.00019726,3]
[347302750,1735669844789,-8791.02,0.00019726,3]
[347302751,1735669844798,-500.0,0.00019726,3]
[347302752,1735669844807,-850.86,0.00019726,3]
[347302753,1735669844817,-500.0,0.00019726,3]
[347302754,1735669844825,-797.48,0.00019726,3]
[347302755,1735669844835,-738.59,0.00019726,3]
[347302756,1735669844844,-734.17,0.00019726,3]
[347302757,1735669844853,-576.41,0.00019726,3]
[347302758,1735669844862,-500.0,0.00019726,3]
[347302759,1735669844871,-850.38,0.00019726,3]
[347302760,1735669844880,-500.0,0.00019726,3]
[347302761,1735669844890,-730.16,0.00019726,3]
[347302762,1735669844899,-891.82,0.00019726,3]
[347302763,1735669844908,-481.55197837,0.00019726,3]
[347302764,1735669844917,-833.17,0.00019726,3]
[347302765,1735669844926,-843.3,0.00019726,3]
[347302766,1735669844936,-500.0,0.00019726,3]
[347302767,1735669844945,-500.0,0.00019726,3]
[347302768,1735669844955,-500.0,0.00019726,3]
[347302769,1735669844965,-1518.08,0.00019726,3]
[347302770,1735669844974,-500.0,0.00019726,3]
[347302771,1735669844983,-500.0,0.00019726,3]
[347302772,1735669844992,-500.0,0.00019726,3]
[347302773,1735669845002,-500.0,0.00019726,3]
[347302774,1735669845011,-500.0,0.00019726,3]
[347302775,1735669845020,-500.0,0.00019726,3]
[347302776,1735669845030,-1852.78,0.00019726,3]
[347302777,1735669845039,-500.0,0.00019726,3]
[347302778,1735669845049,-632.38420102,0.00019726,3]
[347302779,1735669845058,-863.36,0.00019726,3]
[347302780,1735669845067,-500.0,0.00019726,3]
[347302781,1735669845076,-5139.78,0.00019726,3]
[347302782,1735669845086,-500.0,0.00019726,3]
[347302783,1735669845097,-1896.6,0.00019726,3]
[347302784,1735669845107,-749.04,0.00019726,3]
[347302785,1735669845116,-776.35,0.00019726,3]
[347302786,1735669845126,-1521.01,0.00019726,3]
[347302787,1735669845135,-563.58,0.00019726,3]
[347302788,1735669845144,-8890.06,0.00019726,3]
[347302789,1735669845153,-1227.77,0.00019726,3]
[347302790,1735669845162,-600.29,0.00019726,3]
[347302791,1735669845171,-727.38,0.00019726,3]
[347302792,1735669845180,-500.0,0.00019726,3]
[347302793,1735669845189,-500.0,0.00019726,3]
[347302794,1735669845198,-500.0,0.00019726,3]
[347302795,1735669845207,-500.0,0.00019726,3]
[347302796,1735669845217,-500.0,0.00019726,3]
[347302797,1735669845226,-684.02,0.00019726,3]
[347302798,1735669845235,-500.0,0.00019726,3]
[347302799,1735669845244,-500.0,0.00019726,3]
[347302800,1735669845254,-1115.4,0.00019726,3]
[347302801,1735669845264,-500.0,0.00019726,3]
[347302802,1735669845274,-500.0,0.00019726,3]
[347302803,1735669845287,-1002.07,0.00019726,3]
[347302804,1735669845296,-40424.46,0.00019726,3]
[347302805,1735669845306,-1021.39,0.00019726,3]
[347302807,1735669845315,-500.0,0.00019726,3]
[347302808,1735669845325,-500.0,0.00019726,3]
[347302809,1735669845333,-909.7,0.00019726,3]
[347302810,1735669845343,-1245.62,0.00019726,3]
[347302811,1735669845352,-500.0,0.00019726,3]
[347302812,1735669845365,-500.0,0.00019726,3]
[347302813,1735669845376,-3945.13,0.00019726,3]
[347302814,1735669845386,-3107.38,0.00019726,3]
[347302815,1735669845397,-832.16,0.00019726,3]
[347302816,1735669845409,-500.0,0.00019726,3]
[347302817,1735669845419,-1192.86,0.00019726,3]
[347302818,1735669845430,-500.0,0.00019726,3]
[347302819,1735669845439,-500.0,0.00019726,3]
[347302820,1735669845450,-500.0,0.00019726,3]
[347302821,1735669845459,-155.98252225,0.00019726,3]
[347302822,1735669845468,-521.96,0.00019726,3]
[347302823,1735669845478,-315.88,0.00019726,3]
[347302824,1735669845487,-768.06,0.00019726,3]
[347302825,1735669845497,-502.11,0.00019726,3]
[347302826,1735669845506,-1993.67,0.00019726,3]
[347302827,1735669845515,-500.0,0.00019726,3]
[347302828,1735669845524,-1512.88,0.00019726,3]
[347302829,1735669845534,-500.0,0.00019726,3]
[347302830,1735669845543,-1489.93,0.00019726,3]
[347302831,1735669845552,-1621.23,0.00019726,3]
[347302832,1735669845562,-2082.02,0.00019726,3]
[347302833,1735669845571,-1485.04,0.00019726,3]
[347302834,1735669845580,-500.0,0.00019773,2]
[347302835,1735669845589,-714.719,0.0001978,2]
[347302836,1735669845599,-389.94802501,0.00019792,2]
[347302837,1735669845608,-151.0,0.000198,2]
[347302838,1735669845617,-420.0,0.00019822,2]
[347302839,1735669845626,-302.66710251,0.00019868,2]
[347302840,1735669845636,-7609.27316981,0.00019888,2]
[347302841,1735669845645,-1056.27951268,0.00019899,2]
[347302842,1735669845654,-151.0,0.000199,2]
[347302843,1735669845663,-389.94802501,0.00019971,2]
[347302844,1735669845673,-241.49361021,0.00019999,2]
[347302845,1735669845683,-151.0,0.0002,2]
[347302846,1735669845692,-151.0,0.0002,2]
[347302847,1735669845701,-500.0,0.0002,3]
[347302848,1735669845710,-151.0,0.0002,2]
[347302849,1735669845719,-151.0,0.0002,2]
[347302850,1735669845728,-309.653567,0.0002,2]
[347302851,1735669845737,-151.0,0.0002,2]
[347302852,1735669845747,-309.653567,0.0002,2]
[347302853,1735669845757,-2390.0,0.0002,3]
[347302854,1735669845767,-2388.0,0.0002,3]
[347302855,1735669845777,-2388.0,0.0002,3]
[347302856,1735669845786,-2388.0,0.0002,3]
[347302857,1735669845795,-536.86,0.0002,3]
[347302858,1735669845805,-500.0,0.0002,3]
[347302859,1735669845815,-11351.53,0.0002,2]
[347302860,1735669845824,-6157.51,0.0002,2]
[347302861,1735669845833,-500.0,0.0002,3]
[347302862,1735669845843,-500.0,0.0002,3]
[347302863,1735669845852,-500.0,0.0002,3]
[347302864,1735669845861,-500.0,0.0002,3]
[347302865,1735669845871,-500.0,0.0002,3]
[347302866,1735669845880,-526.068168,0.0002,3]
[347302867,1735669845889,-500.0,0.0002,3]
[347302868,1735669845898,-545.94,0.0002,3]
[347302870,1735669845908,-500.0,0.0002,3]
[347302872,1735669845918,-589.09,0.0002,3]
[347302873,1735669845927,-500.0,0.0002,3]
[347302874,1735669845937,-502.16,0.0002,3]
[347302876,1735669845946,-500.0,0.0002,3]
[347302878,1735669845955,-806.41,0.0002,3]
[347302879,1735669845964,-550.6813367,0.0002,3]
[347302880,1735669845974,-500.0,0.0002,3]
[347302881,1735669845983,-500.0,0.0002,3]
[347302882,1735669845992,-500.0,0.0002,3]
[347302883,1735669846002,-500.0,0.0002,2]
[347302884,1735669846011,-500.0,0.0002,3]
[347302885,1735669846020,-759.41,0.0002,3]
[347302886,1735669846030,-500.0,0.0002,3]
[347302887,1735669846039,-500.0,0.0002,3]
[347302888,1735669846048,-500.0,0.0002,3]
[347302889,1735669846057,-5614.94,0.0002,3]
[347302890,1735669846067,-500.0,0.0002,3]
[347302891,1735669846076,-500.0,0.0002,3]
[347302892,1735669846085,-902.8,0.0002,3]
[347302893,1735669846094,-517.61,0.0002,3]
[347302894,1735669846103,-500.0,0.0002,3]
[347302895,1735669846112,-500.0,0.0002,3]
[347302896,1735669846122,-500.0,0.0002,3]
[347302897,1735669846131,-500.0,0.0002,3]
[347302898,1735669846140,-500.0,0.0002,3]
[347302899,1735669846149,-522.98,0.0002,3]
[347302900,1735669846158,-500.0,0.0002,3]
[347302901,1735669846167,-577.61,0.0002,3]
[347302902,1735669846176,-500.0,0.0002,3]
[347302903,1735669846186,-842.88,0.0002,3]
[347302904,1735669846195,-500.0,0.0002,3]
[347302905,1735669846204,-500.0,0.0002,3]
[347302906,1735669846213,-6080.51,0.0002,3]
[347302907,1735669846222,-500.0,0.0002,3]
[347302908,1735669846231,-973.69,0.0002,3]
[347302909,1735669846240,-332.11562887,0.0002,3]
[347302910,1735669846250,-592.17,0.0002,3]
[347302911,1735669846259,-731.64,0.0002,3]
[347302912,1735669846267,-500.0,0.0002,3]
[347302913,1735669846277,-500.0,0.0002,3]
[347302914,1735669846289,-500.0,0.0002,3]
[347302915,1735669846299,-1148.79,0.0002,3]
[347302916,1735669846308,-735.48,0.0002,3]
[347302917,1735669846318,-500.0,0.0002,3]
[347302918,1735669846328,-525.49,0.0002,3]
[347302919,1735669846337,-534.43,0.0002,3]
[347302920,1735669846346,-500.0,0.0002,3]
[347302921,1735669846359,-500.0,0.0002,3]
[347302923,1735669846370,-1132.64,0.0002,3]
[347302925,1735669846379,-769.3,0.0002,3]
[347302926,1735669846388,-1178.70076343,0.0002,3]
[347302932,1735669882641,-185.9528876,0.00017642,2]
[347302933,1735669882663,-185.9528876,0.0001782,2]
[347302934,1735669882685,-802.2882827,0.00018627,2]
[347302935,1735669882825,-500.0,0.00019178,2]
[347302936,1735669882847,-500.0,0.00019178,2]
[347302937,1735669882870,-577.55,0.00019178,2]
[347302938,1735669882893,-500.0,0.00019178,2]
[347302939,1735669882916,-500.0,0.00019178,2]
[347302940,1735669882939,-752.33,0.00019178,2]
[347302941,1735669882961,-500.0,0.00019178,2]
[347302942,1735669882982,-500.0,0.00019178,2]
[347302943,1735669883004,-300.0,0.00019451,2]
[347302944,1735669883025,-500.0,0.00019452,3]
[347302945,1735669883047,-577.55,0.00019452,3]
[347302946,1735669883068,-500.0,0.00019452,3]
[347302947,1735669883090,-512.39908911,0.00019452,3]
[347302948,1735669883113,-752.33,0.00019452,3]
[347302949,1735669883135,-500.0,0.00019452,3]
[347302950,1735669883157,-500.0,0.00019452,3]
[347302951,1735669883180,-153.0,0.00019583,2]
[347302952,1735669883202,-153.0,0.00019583,2]
[347302953,1735669883224,-153.0,0.00019583,2]
[347302954,1735669883246,-153.0,0.00019583,2]
[347302955,1735669883269,-153.0,0.00019583,2]
[347302956,1735669883295,-500.0,0.00019726,3]